[Event "Titled Tuesday Blitz May 30 Late 2023"]
[White "Escalante Ramirez, Rafael"]
[Black "dorpato"]
[WhiteFideId "3900177"]
[WhiteElo "2212"]
[BlackElo "2035"]
[Result "0-1"]
[Round "09"]
[TimeControl "180+2"]
[Date "2023.05.31"]
[WhiteClock "0:00:02"]
[BlackClock "0:00:08"]

1. Nf3 {[%clk 0:03:00]}  c5 {[%clk 0:02:57]} 2. e3 {[%clk 0:03:00]}  g6 {[%clk 0:02:56]} 3. d4 {[%clk 0:03:00]}  cxd4 {[%clk 0:02:57]} 4. exd4 {[%clk 0:02:59]}  Bg7 {[%clk 0:02:57]} 5. Bd3 {[%clk 0:02:59]}  Nf6 {[%clk 0:02:57]} 6. O-O {[%clk 0:02:59]}  O-O {[%clk 0:02:57]} 7. c3 {[%clk 0:02:59]}  d5 {[%clk 0:02:56]} 8. h3 {[%clk 0:02:58]}  Bd7 {[%clk 0:02:55]} 9. Bf4 {[%clk 0:02:58]}  Nc6 {[%clk 0:02:54]} 10. Nbd2 {[%clk 0:02:57]}  Nh5 {[%clk 0:02:47]} 11. Bh2 {[%clk 0:02:56]}  Re8 {[%clk 0:02:45]} 12. Re1 {[%clk 0:02:56]}  e6 {[%clk 0:02:36]} 13. a4 {[%clk 0:02:49]}  Bh8 {[%clk 0:02:11]} 14. Qe2 {[%clk 0:02:47]}  f6 {[%clk 0:02:09]} 15. Qd1 {[%clk 0:02:32]}  Ng7 {[%clk 0:01:48]} 16. b4 {[%clk 0:02:25]}  Ne7 {[%clk 0:01:41]} 17. a5 {[%clk 0:02:23]}  Rc8 {[%clk 0:01:41]} 18. Qb3 {[%clk 0:02:17]}  Nef5 {[%clk 0:01:28]} 19. Re2 {[%clk 0:02:14]}  Re7 {[%clk 0:01:14]} 20. Rae1 {[%clk 0:02:14]}  Qe8 {[%clk 0:01:08]} 21. g4 {[%clk 0:02:09]}  Nh6 {[%clk 0:01:00]} 22. g5 {[%clk 0:02:08]}  fxg5 {[%clk 0:00:53]} 23. Nxg5 {[%clk 0:02:08]}  Nhf5 {[%clk 0:00:44]} 24. Be5 {[%clk 0:01:52]}  h6 {[%clk 0:00:38]} 25. Ngf3 {[%clk 0:01:52]}  Nh5 {[%clk 0:00:33]} 26. Bxf5 {[%clk 0:01:15]}  gxf5 {[%clk 0:00:26]} 27. Kh2 {[%clk 0:01:09]}  Bxe5+ {[%clk 0:00:24]} 28. Nxe5 {[%clk 0:01:09]}  Kh7 {[%clk 0:00:21]} 29. Rg1 {[%clk 0:00:54]}  Rg7 {[%clk 0:00:19]} 30. Rxg7+ {[%clk 0:00:53]}  Nxg7 {[%clk 0:00:19]} 31. Re1 {[%clk 0:00:51]}  Nh5 {[%clk 0:00:17]} 32. Rg1 {[%clk 0:00:50]}  Qe7 {[%clk 0:00:17]} 33. Ndf3 {[%clk 0:00:37]}  Rg8 {[%clk 0:00:16]} 34. Rxg8 {[%clk 0:00:35]}  Kxg8 {[%clk 0:00:16]} 35. Qd1 {[%clk 0:00:33]}  Qg7 {[%clk 0:00:15]} 36. Qd2 {[%clk 0:00:32]}  Nf6 {[%clk 0:00:15]} 37. Qe3 {[%clk 0:00:23]}  Ne4 {[%clk 0:00:14]} 38. Nh4 {[%clk 0:00:19]}  Be8 {[%clk 0:00:13]} 39. Ng2 {[%clk 0:00:18]}  Ng5 {[%clk 0:00:13]} 40. Qg3 {[%clk 0:00:16]}  Ne4 {[%clk 0:00:11]} 41. Qxg7+ {[%clk 0:00:16]}  Kxg7 {[%clk 0:00:12]} 42. Nf4 {[%clk 0:00:14]}  Kf6 {[%clk 0:00:11]} 43. c4 {[%clk 0:00:12]}  dxc4 {[%clk 0:00:10]} 44. Nxc4 {[%clk 0:00:10]}  Bb5 {[%clk 0:00:09]} 45. Nd6 {[%clk 0:00:08]}  Bc6 {[%clk 0:00:08]} 46. f3 {[%clk 0:00:07]}  Nxd6 {[%clk 0:00:08]} 47. Nd3 {[%clk 0:00:06]}  b6 {[%clk 0:00:08]} 48. Kg3 {[%clk 0:00:05]}  bxa5 {[%clk 0:00:08]} 49. bxa5 {[%clk 0:00:05]}  Nc4 {[%clk 0:00:09]} 50. a6 {[%clk 0:00:04]}  Bb5 {[%clk 0:00:09]} 51. Nc5 {[%clk 0:00:03]}  Nd6 {[%clk 0:00:09]} 52. Kf4 {[%clk 0:00:03]}  Nf7 {[%clk 0:00:08]} 53. Kg3 {[%clk 0:00:02]}  Nd8 {[%clk 0:00:08]} 0-1


[Site "https://www.chess.com"]

[Event "Titled Tuesday Blitz May 30 Late 2023"]
[White "Duda, Jan-Krzysztof"]
[Black "Henriquez Villagra, Cristobal"]
[WhiteFideId "1170546"]
[BlackFideId "3409350"]
[WhiteElo "2790"]
[BlackElo "2542"]
[Result "0-1"]
[Round "10"]
[TimeControl "180+2"]
[Date "2023.05.31"]
[WhiteClock "0:00:01"]
[BlackClock "0:00:11"]

1. d4 {[%clk 0:03:00]}  Nf6 {[%clk 0:02:59]} 2. c4 {[%clk 0:03:01]}  g6 {[%clk 0:02:59]} 3. Nc3 {[%clk 0:03:00]}  Bg7 {[%clk 0:02:59]} 4. e4 {[%clk 0:03:00]}  d6 {[%clk 0:02:59]} 5. h3 {[%clk 0:02:57]}  e5 {[%clk 0:02:57]} 6. dxe5 {[%clk 0:02:52]}  dxe5 {[%clk 0:02:58]} 7. Qxd8+ {[%clk 0:02:53]}  Kxd8 {[%clk 0:02:59]} 8. Be3 {[%clk 0:02:53]}  Be6 {[%clk 0:02:41]} 9. O-O-O+ {[%clk 0:02:53]}  Nfd7 {[%clk 0:02:38]} 10. Nf3 {[%clk 0:02:48]}  Nc6 {[%clk 0:02:36]} 11. Nd5 {[%clk 0:02:36]}  h6 {[%clk 0:02:26]} 12. Bd3 {[%clk 0:02:35]}  Nd4 {[%clk 0:02:13]} 13. Bc2 {[%clk 0:01:48]}  c5 {[%clk 0:02:09]} 14. Nd2 {[%clk 0:01:41]}  f5 {[%clk 0:01:51]} 15. exf5 {[%clk 0:01:29]}  gxf5 {[%clk 0:01:52]} 16. g4 {[%clk 0:01:29]}  Nxc2 {[%clk 0:01:43]} 17. Kxc2 {[%clk 0:01:22]}  Bxd5 {[%clk 0:01:38]} 18. cxd5 {[%clk 0:01:20]}  f4 {[%clk 0:01:39]} 19. d6 {[%clk 0:01:07]}  fxe3 {[%clk 0:01:38]} 20. fxe3 {[%clk 0:01:07]}  Ke8 {[%clk 0:01:35]} 21. Rhf1 {[%clk 0:01:06]}  Rf8 {[%clk 0:01:34]} 22. Ne4 {[%clk 0:01:06]}  Rc8 {[%clk 0:01:15]} 23. Rxf8+ {[%clk 0:01:04]}  Kxf8 {[%clk 0:01:13]} 24. Rf1+ {[%clk 0:01:00]}  Ke8 {[%clk 0:01:12]} 25. Kc3 {[%clk 0:01:00]}  c4 {[%clk 0:01:12]} 26. Kb4 {[%clk 0:00:58]}  Rc6 {[%clk 0:01:11]} 27. Rf2 {[%clk 0:00:53]}  Bf8 {[%clk 0:01:09]} 28. Rd2 {[%clk 0:00:53]}  Kf7 {[%clk 0:01:08]} 29. h4 {[%clk 0:00:46]}  Ke6 {[%clk 0:01:09]} 30. g5 {[%clk 0:00:46]}  hxg5 {[%clk 0:01:08]} 31. Nxg5+ {[%clk 0:00:47]}  Kf5 {[%clk 0:01:03]} 32. Rf2+ {[%clk 0:00:46]}  Kg4 {[%clk 0:01:03]} 33. Rf7 {[%clk 0:00:33]}  Bxd6+ {[%clk 0:00:58]} 34. Kc3 {[%clk 0:00:32]}  Nb6 {[%clk 0:00:52]} 35. Ne4 {[%clk 0:00:16]}  Nd5+ {[%clk 0:00:47]} 36. Kd2 {[%clk 0:00:16]}  Bb4+ {[%clk 0:00:47]} 37. Ke2 {[%clk 0:00:16]}  c3 {[%clk 0:00:39]} 38. Rg7+ {[%clk 0:00:14]}  Kxh4 {[%clk 0:00:38]} 39. Kf3 {[%clk 0:00:13]}  Nf6 {[%clk 0:00:32]} 40. Ng3 {[%clk 0:00:06]}  e4+ {[%clk 0:00:28]} 41. Kg2 {[%clk 0:00:06]}  Rc5 {[%clk 0:00:25]} 42. bxc3 {[%clk 0:00:04]}  Bxc3 {[%clk 0:00:25]} 43. Ne2 {[%clk 0:00:04]}  Bd2 {[%clk 0:00:22]} 44. Rxb7 {[%clk 0:00:02]}  Bxe3 {[%clk 0:00:22]} 45. Kf1 {[%clk 0:00:02]}  Rf5+ {[%clk 0:00:20]} 46. Ke1 {[%clk 0:00:03]}  Bf2+ {[%clk 0:00:19]} 47. Kd2 {[%clk 0:00:03]}  Rd5+ {[%clk 0:00:20]} 48. Kc3 {[%clk 0:00:03]}  Ra5 {[%clk 0:00:17]} 49. Kb3 {[%clk 0:00:01]}  Ra6 {[%clk 0:00:17]} 50. Rg7 {[%clk 0:00:01]}  e3 {[%clk 0:00:13]} 51. a4 {[%clk 0:00:01]}  Nh5 {[%clk 0:00:13]} 52. Rg8 {[%clk 0:00:01]}  Ng3 {[%clk 0:00:14]} 53. Nf4 {[%clk 0:00:01]}  Rf6 {[%clk 0:00:11]} 0-1


[Site "https://www.chess.com"]

[Event "Titled Tuesday Blitz May 30 Late 2023"]
[White "Xiong, Jeffery"]
[Black "Maksimovic, Bojan"]
[WhiteFideId "2047640"]
[BlackFideId "14408120"]
[WhiteElo "2726"]
[BlackElo "2468"]
[Result "1-0"]
[Round "10"]
[TimeControl "180+2"]
[Date "2023.05.31"]
[WhiteClock "0:00:37"]
[BlackClock "0:00:03"]

1. d4 {[%clk 0:03:00]}  g6 {[%clk 0:03:00]} 2. e4 {[%clk 0:03:00]}  Nf6 {[%clk 0:03:01]} 3. e5 {[%clk 0:02:56]}  Nh5 {[%clk 0:03:01]} 4. Nf3 {[%clk 0:02:26]}  d6 {[%clk 0:03:01]} 5. exd6 {[%clk 0:02:26]}  cxd6 {[%clk 0:03:01]} 6. Be2 {[%clk 0:02:26]}  Bg7 {[%clk 0:03:01]} 7. O-O {[%clk 0:02:27]}  O-O {[%clk 0:03:01]} 8. Re1 {[%clk 0:02:27]}  e5 {[%clk 0:02:53]} 9. d5 {[%clk 0:02:10]}  Nd7 {[%clk 0:02:49]} 10. c4 {[%clk 0:02:10]}  h6 {[%clk 0:02:41]} 11. Nc3 {[%clk 0:02:10]}  f5 {[%clk 0:02:39]} 12. Nd2 {[%clk 0:02:08]}  Nhf6 {[%clk 0:02:39]} 13. b3 {[%clk 0:02:05]}  e4 {[%clk 0:02:38]} 14. Nf1 {[%clk 0:02:04]}  Ne5 {[%clk 0:02:28]} 15. Ba3 {[%clk 0:01:59]}  a6 {[%clk 0:02:19]} 16. Qd2 {[%clk 0:01:55]}  b6 {[%clk 0:02:16]} 17. f4 {[%clk 0:01:50]}  exf3 {[%clk 0:02:14]} 18. Bxf3 {[%clk 0:01:51]}  Nxf3+ {[%clk 0:02:09]} 19. gxf3 {[%clk 0:01:52]}  Nh5 {[%clk 0:02:10]} 20. Bb2 {[%clk 0:01:52]}  Qh4 {[%clk 0:02:06]} 21. Ne2 {[%clk 0:01:52]}  Bxb2 {[%clk 0:01:56]} 22. Qxb2 {[%clk 0:01:53]}  f4 {[%clk 0:01:56]} 23. Nd4 {[%clk 0:01:53]}  Bh3 {[%clk 0:01:44]} 24. Ne6 {[%clk 0:01:54]}  Rf6 {[%clk 0:01:44]} 25. Qf2 {[%clk 0:01:48]}  Qxf2+ {[%clk 0:01:41]} 26. Kxf2 {[%clk 0:01:49]}  b5 {[%clk 0:01:33]} 27. Nd2 {[%clk 0:01:48]}  Bxe6 {[%clk 0:01:15]} 28. dxe6 {[%clk 0:01:49]}  Ng7 {[%clk 0:01:15]} 29. e7 {[%clk 0:01:36]}  Re8 {[%clk 0:01:15]} 30. cxb5 {[%clk 0:01:36]}  axb5 {[%clk 0:01:16]} 31. a4 {[%clk 0:01:36]}  bxa4 {[%clk 0:01:17]} 32. Rxa4 {[%clk 0:01:36]}  Rf7 {[%clk 0:01:14]} 33. Rd4 {[%clk 0:01:26]}  Nf5 {[%clk 0:01:11]} 34. Rxf4 {[%clk 0:01:26]}  Rfxe7 {[%clk 0:01:12]} 35. Rxe7 {[%clk 0:01:27]}  Rxe7 {[%clk 0:01:12]} 36. Re4 {[%clk 0:01:25]}  Ra7 {[%clk 0:01:12]} 37. Ke2 {[%clk 0:01:24]}  Kf7 {[%clk 0:01:11]} 38. Kd3 {[%clk 0:01:25]}  Ra2 {[%clk 0:01:10]} 39. Re2 {[%clk 0:01:24]}  Ra1 {[%clk 0:01:04]} 40. Nc4 {[%clk 0:01:22]}  d5 {[%clk 0:01:01]} 41. Ne3 {[%clk 0:01:14]}  Ne7 {[%clk 0:00:50]} 42. Nc2 {[%clk 0:01:08]}  Rd1+ {[%clk 0:00:48]} 43. Rd2 {[%clk 0:01:08]}  Rf1 {[%clk 0:00:48]} 44. Nd4 {[%clk 0:01:09]}  Kf6 {[%clk 0:00:44]} 45. b4 {[%clk 0:01:09]}  Rb1 {[%clk 0:00:45]} 46. b5 {[%clk 0:01:08]}  Nf5 {[%clk 0:00:43]} 47. Kc2 {[%clk 0:01:05]}  Rb4 {[%clk 0:00:18]} 48. Nxf5 {[%clk 0:01:05]}  Kxf5 {[%clk 0:00:19]} 49. Rxd5+ {[%clk 0:01:06]}  Ke6 {[%clk 0:00:19]} 50. Kc3 {[%clk 0:01:02]}  Rb1 {[%clk 0:00:13]} 51. Rc5 {[%clk 0:01:02]}  Kd6 {[%clk 0:00:13]} 52. Rc6+ {[%clk 0:01:03]}  Ke5 {[%clk 0:00:09]} 53. Kc4 {[%clk 0:01:02]}  Kf5 {[%clk 0:00:04]} 54. b6 {[%clk 0:01:02]}  h5 {[%clk 0:00:02]} 55. h4 {[%clk 0:00:44]}  g5 {[%clk 0:00:01]} 56. Rc5+ {[%clk 0:00:42]}  Kf4 {[%clk 0:00:01]} 57. Rb5 {[%clk 0:00:42]}  Rc1+ {[%clk 0:00:02]} 58. Kd3 {[%clk 0:00:43]}  gxh4 {[%clk 0:00:02]} 59. b7 {[%clk 0:00:43]}  h3 {[%clk 0:00:02]} 60. b8=Q+ {[%clk 0:00:43]}  Kxf3 {[%clk 0:00:03]} 61. Rf5+ {[%clk 0:00:43]}  Kg2 {[%clk 0:00:03]} 62. Rg5+ {[%clk 0:00:41]}  Kh1 {[%clk 0:00:03]} 63. Qg3 {[%clk 0:00:37]} 1-0


[Site "https://www.chess.com"]

[Event "Titled Tuesday Blitz May 30 Late 2023"]
[White "Sarana, Alexey"]
[Black "Demidov, Mikhail"]
[WhiteFideId "24133795"]
[BlackFideId "4197143"]
[WhiteElo "2714"]
[BlackElo "2500"]
[Result "1-0"]
[Round "10"]
[TimeControl "180+2"]
[Date "2023.05.31"]
[WhiteClock "0:00:15"]
[BlackClock "0:00:06"]

1. d4 {[%clk 0:03:00]}  d5 {[%clk 0:02:49]} 2. c4 {[%clk 0:03:00]}  c6 {[%clk 0:02:48]} 3. Nf3 {[%clk 0:03:00]}  e6 {[%clk 0:02:48]} 4. g3 {[%clk 0:02:53]}  f5 {[%clk 0:02:45]} 5. Bf4 {[%clk 0:02:51]}  Nf6 {[%clk 0:02:45]} 6. Nbd2 {[%clk 0:02:51]}  Be7 {[%clk 0:02:45]} 7. Bg2 {[%clk 0:02:50]}  O-O {[%clk 0:02:45]} 8. O-O {[%clk 0:02:49]}  Bd7 {[%clk 0:02:45]} 9. Qb3 {[%clk 0:02:47]}  Qb6 {[%clk 0:02:34]} 10. c5 {[%clk 0:02:41]}  Qa6 {[%clk 0:02:32]} 11. Rfc1 {[%clk 0:02:41]}  b6 {[%clk 0:02:21]} 12. Ne5 {[%clk 0:02:07]}  Be8 {[%clk 0:02:11]} 13. Bf1 {[%clk 0:02:06]}  bxc5 {[%clk 0:02:02]} 14. dxc5 {[%clk 0:01:49]}  Nbd7 {[%clk 0:01:56]} 15. Nxd7 {[%clk 0:01:36]}  Nxd7 {[%clk 0:01:42]} 16. Qe3 {[%clk 0:01:26]}  Bf7 {[%clk 0:01:33]} 17. Nf3 {[%clk 0:01:23]}  Rfe8 {[%clk 0:01:27]} 18. Ne5 {[%clk 0:01:19]}  Nxe5 {[%clk 0:01:26]} 19. Bxe5 {[%clk 0:01:19]}  Qb7 {[%clk 0:01:12]} 20. Rab1 {[%clk 0:01:19]}  a5 {[%clk 0:01:12]} 21. a3 {[%clk 0:01:13]}  Bf6 {[%clk 0:01:10]} 22. b4 {[%clk 0:00:54]}  axb4 {[%clk 0:01:08]} 23. Rxb4 {[%clk 0:00:32]}  Qa7 {[%clk 0:01:03]} 24. Rc3 {[%clk 0:00:32]}  Bxe5 {[%clk 0:00:54]} 25. Qxe5 {[%clk 0:00:33]}  Rab8 {[%clk 0:00:53]} 26. Rcb3 {[%clk 0:00:31]}  Rxb4 {[%clk 0:00:53]} 27. axb4 {[%clk 0:00:31]}  Qb8 {[%clk 0:00:44]} 28. Qb2 {[%clk 0:00:16]}  d4 {[%clk 0:00:37]} 29. b5 {[%clk 0:00:15]}  e5 {[%clk 0:00:37]} 30. Rb4 {[%clk 0:00:16]}  cxb5 {[%clk 0:00:32]} 31. Rxb5 {[%clk 0:00:17]}  Qc7 {[%clk 0:00:29]} 32. Bg2 {[%clk 0:00:17]}  Rd8 {[%clk 0:00:21]} 33. Qb4 {[%clk 0:00:16]}  e4 {[%clk 0:00:20]} 34. Rb7 {[%clk 0:00:17]}  Qc6 {[%clk 0:00:17]} 35. Rb6 {[%clk 0:00:16]}  Qc7 {[%clk 0:00:17]} 36. Rd6 {[%clk 0:00:14]}  Rb8 {[%clk 0:00:15]} 37. Qxd4 {[%clk 0:00:11]}  h5 {[%clk 0:00:13]} 38. h4 {[%clk 0:00:11]}  Rb1+ {[%clk 0:00:09]} 39. Kh2 {[%clk 0:00:11]}  Rc1 {[%clk 0:00:10]} 40. Rd8+ {[%clk 0:00:12]}  Kh7 {[%clk 0:00:10]} 41. Rd7 {[%clk 0:00:12]}  Qxc5 {[%clk 0:00:05]} 42. Qxc5 {[%clk 0:00:12]}  Rxc5 {[%clk 0:00:06]} 43. Rxf7 {[%clk 0:00:13]}  Kg6 {[%clk 0:00:06]} 44. Rf8 {[%clk 0:00:13]}  Rc2 {[%clk 0:00:06]} 45. Bh3 {[%clk 0:00:13]}  Rxe2 {[%clk 0:00:06]} 46. Bxf5+ {[%clk 0:00:14]}  Kh6 {[%clk 0:00:06]} 47. Rh8# {[%clk 0:00:15]} 1-0


[Site "https://www.chess.com"]

[Event "Titled Tuesday Blitz May 30 Late 2023"]
[White "Durarbayli, Vasif"]
[Black "Lazavik, Denis"]
[WhiteFideId "13402935"]
[BlackFideId "13515110"]
[WhiteElo "2551"]
[BlackElo "2560"]
[Result "1-0"]
[Round "10"]
[TimeControl "180+2"]
[Date "2023.05.31"]
[WhiteClock "0:00:18"]
[BlackClock "0:00:18"]

1. e4 {[%clk 0:03:00]}  c5 {[%clk 0:03:00]} 2. Nf3 {[%clk 0:03:01]}  e6 {[%clk 0:03:00]} 3. d4 {[%clk 0:02:59]}  cxd4 {[%clk 0:03:01]} 4. Nxd4 {[%clk 0:02:59]}  Nc6 {[%clk 0:03:02]} 5. Nc3 {[%clk 0:03:00]}  Qc7 {[%clk 0:03:02]} 6. Be3 {[%clk 0:03:01]}  a6 {[%clk 0:03:02]} 7. Qf3 {[%clk 0:03:01]}  b5 {[%clk 0:03:03]} 8. Nxc6 {[%clk 0:02:58]}  Qxc6 {[%clk 0:03:03]} 9. Bd3 {[%clk 0:02:58]}  h5 {[%clk 0:03:03]} 10. O-O {[%clk 0:02:52]}  Bb7 {[%clk 0:03:03]} 11. a4 {[%clk 0:02:40]}  b4 {[%clk 0:03:02]} 12. Ne2 {[%clk 0:02:41]}  Nf6 {[%clk 0:03:01]} 13. Nd4 {[%clk 0:02:41]}  Qc7 {[%clk 0:03:00]} 14. Rfe1 {[%clk 0:02:30]}  Bd6 {[%clk 0:02:54]} 15. h3 {[%clk 0:02:24]}  Be5 {[%clk 0:02:53]} 16. Rac1 {[%clk 0:02:12]}  d5 {[%clk 0:02:47]} 17. exd5 {[%clk 0:02:12]}  Nxd5 {[%clk 0:02:39]} 18. Be4 {[%clk 0:02:10]}  O-O-O {[%clk 0:02:25]} 19. c3 {[%clk 0:01:52]}  b3 {[%clk 0:02:20]} 20. Bg5 {[%clk 0:01:38]}  Rd7 {[%clk 0:01:57]} 21. c4 {[%clk 0:01:05]}  Nb4 {[%clk 0:01:42]} 22. Bxb7+ {[%clk 0:00:46]}  Qxb7 {[%clk 0:01:43]} 23. Rxe5 {[%clk 0:00:46]}  Rxd4 {[%clk 0:01:43]} 24. Rc5+ {[%clk 0:00:32]}  Kb8 {[%clk 0:01:43]} 25. Qg3+ {[%clk 0:00:33]}  Ka8 {[%clk 0:01:38]} 26. Rc7 {[%clk 0:00:30]}  Qe4 {[%clk 0:01:09]} 27. Be3 {[%clk 0:00:31]}  Nc2 {[%clk 0:00:59]} 28. Qxg7 {[%clk 0:00:23]}  Rdd8 {[%clk 0:00:49]} 29. Qxf7 {[%clk 0:00:18]}  Kb8 {[%clk 0:00:19]} 30. Ba7+ {[%clk 0:00:17]}  Ka8 {[%clk 0:00:20]} 31. Bb6 {[%clk 0:00:18]}  Kb8 {[%clk 0:00:18]} 32. Rc8+ {[%clk 0:00:18]} 1-0


[Site "https://www.chess.com"]

[Event "Titled Tuesday Blitz May 30 Late 2023"]
[White "Makarian, Rudik"]
[Black "Rustemov, Alexander"]
[WhiteFideId "44105681"]
[BlackFideId "4119002"]
[WhiteElo "2461"]
[BlackElo "2887"]
[Result "1/2-1/2"]
[Round "10"]
[TimeControl "180+2"]
[Date "2023.05.31"]
[WhiteClock "0:00:07"]
[BlackClock "0:00:05"]

1. d4 {[%clk 0:03:00]}  d5 {[%clk 0:02:54]} 2. c4 {[%clk 0:03:01]}  dxc4 {[%clk 0:02:54]} 3. Nf3 {[%clk 0:02:59]}  Nf6 {[%clk 0:02:54]} 4. e3 {[%clk 0:02:59]}  e6 {[%clk 0:02:54]} 5. Bxc4 {[%clk 0:03:00]}  a6 {[%clk 0:02:54]} 6. O-O {[%clk 0:03:00]}  b5 {[%clk 0:02:54]} 7. Bd3 {[%clk 0:03:01]}  Bb7 {[%clk 0:02:54]} 8. a4 {[%clk 0:03:01]}  bxa4 {[%clk 0:02:49]} 9. Qxa4+ {[%clk 0:02:47]}  Nbd7 {[%clk 0:02:49]} 10. Ne5 {[%clk 0:02:39]}  c5 {[%clk 0:02:48]} 11. Nc3 {[%clk 0:02:36]}  Qc7 {[%clk 0:02:21]} 12. Rd1 {[%clk 0:02:28]}  Bd6 {[%clk 0:02:16]} 13. Nxd7 {[%clk 0:02:09]}  Nxd7 {[%clk 0:02:14]} 14. h3 {[%clk 0:02:03]}  O-O {[%clk 0:02:11]} 15. Be4 {[%clk 0:01:56]}  Bxe4 {[%clk 0:01:57]} 16. Nxe4 {[%clk 0:01:56]}  Be7 {[%clk 0:01:57]} 17. Bd2 {[%clk 0:01:42]}  cxd4 {[%clk 0:01:54]} 18. Qxd4 {[%clk 0:01:38]}  Nf6 {[%clk 0:01:50]} 19. Bc3 {[%clk 0:01:32]}  Rfd8 {[%clk 0:01:46]} 20. Qa4 {[%clk 0:01:30]}  Nd5 {[%clk 0:01:36]} 21. Bd4 {[%clk 0:01:25]}  Qb7 {[%clk 0:01:35]} 22. Rac1 {[%clk 0:01:18]}  Rdc8 {[%clk 0:01:32]} 23. Ng3 {[%clk 0:01:01]}  Qb5 {[%clk 0:01:15]} 24. Qa1 {[%clk 0:00:56]}  Bf8 {[%clk 0:01:07]} 25. Ne4 {[%clk 0:00:48]}  Nb4 {[%clk 0:01:03]} 26. Rxc8 {[%clk 0:00:44]}  Rxc8 {[%clk 0:01:03]} 27. Bc3 {[%clk 0:00:45]}  Nd5 {[%clk 0:01:01]} 28. Qb1 {[%clk 0:00:39]}  f5 {[%clk 0:00:53]} 29. Ng5 {[%clk 0:00:38]}  Nxc3 {[%clk 0:00:53]} 30. bxc3 {[%clk 0:00:37]}  Qxb1 {[%clk 0:00:53]} 31. Rxb1 {[%clk 0:00:38]}  Ra8 {[%clk 0:00:46]} 32. Nxe6 {[%clk 0:00:37]}  a5 {[%clk 0:00:47]} 33. Nxf8 {[%clk 0:00:31]}  Kxf8 {[%clk 0:00:47]} 34. Kf1 {[%clk 0:00:32]}  a4 {[%clk 0:00:47]} 35. Ke2 {[%clk 0:00:32]}  Ke7 {[%clk 0:00:46]} 36. Kd3 {[%clk 0:00:33]}  Kd6 {[%clk 0:00:45]} 37. Kd4 {[%clk 0:00:31]}  a3 {[%clk 0:00:44]} 38. Ra1 {[%clk 0:00:31]}  Ra4+ {[%clk 0:00:37]} 39. c4 {[%clk 0:00:29]}  a2 {[%clk 0:00:37]} 40. g3 {[%clk 0:00:20]}  h5 {[%clk 0:00:28]} 41. h4 {[%clk 0:00:18]}  g6 {[%clk 0:00:27]} 42. Kc3 {[%clk 0:00:18]}  Kc5 {[%clk 0:00:28]} 43. Kb3 {[%clk 0:00:17]}  Rb4+ {[%clk 0:00:20]} 44. Ka3 {[%clk 0:00:14]}  Rb8 {[%clk 0:00:17]} 45. f3 {[%clk 0:00:04]}  Kxc4 {[%clk 0:00:11]} 46. Rc1+ {[%clk 0:00:03]}  Kd3 {[%clk 0:00:11]} 47. Kxa2 {[%clk 0:00:04]}  Kxe3 {[%clk 0:00:11]} 48. Rc6 {[%clk 0:00:04]}  Rg8 {[%clk 0:00:08]} 49. Rc3+ {[%clk 0:00:04]}  Kf2 {[%clk 0:00:09]} 50. f4 {[%clk 0:00:05]}  Re8 {[%clk 0:00:08]} 51. Rc6 {[%clk 0:00:03]}  Re2+ {[%clk 0:00:06]} 52. Kb1 {[%clk 0:00:03]}  Re3 {[%clk 0:00:04]} 53. Rxg6 {[%clk 0:00:03]}  Rxg3 {[%clk 0:00:05]} 54. Rg5 {[%clk 0:00:03]}  Rg4 {[%clk 0:00:03]} 55. Rxh5 {[%clk 0:00:01]}  Rxf4 {[%clk 0:00:04]} 56. Kc2 {[%clk 0:00:02]}  Ke3 {[%clk 0:00:03]} 57. Rh8 {[%clk 0:00:02]}  Rc4+ {[%clk 0:00:03]} 58. Kd1 {[%clk 0:00:02]}  f4 {[%clk 0:00:03]} 59. h5 {[%clk 0:00:02]}  f3 {[%clk 0:00:03]} 60. Re8+ {[%clk 0:00:03]}  Kf2 {[%clk 0:00:03]} 61. h6 {[%clk 0:00:03]}  Rd4+ {[%clk 0:00:04]} 62. Kc2 {[%clk 0:00:03]}  Rh4 {[%clk 0:00:05]} 63. Re6 {[%clk 0:00:03]}  Kg3 {[%clk 0:00:05]} 64. Rg6+ {[%clk 0:00:04]}  Kf4 {[%clk 0:00:05]} 65. Kd3 {[%clk 0:00:04]}  Rh1 {[%clk 0:00:04]} 66. Rf6+ {[%clk 0:00:04]}  Kg3 {[%clk 0:00:04]} 67. Rg6+ {[%clk 0:00:05]}  Kf4 {[%clk 0:00:04]} 68. Rf6+ {[%clk 0:00:05]}  Kg4 {[%clk 0:00:04]} 69. Rg6+ {[%clk 0:00:05]}  Kf5 {[%clk 0:00:04]} 70. Rg8 {[%clk 0:00:04]}  Rxh6 {[%clk 0:00:02]} 71. Ke3 {[%clk 0:00:04]}  Rh3 {[%clk 0:00:02]} 72. Kf2 {[%clk 0:00:04]}  Kf4 {[%clk 0:00:02]} 73. Rf8+ {[%clk 0:00:05]}  Ke4 {[%clk 0:00:03]} 74. Re8+ {[%clk 0:00:05]}  Kf4 {[%clk 0:00:04]} 75. Rf8+ {[%clk 0:00:06]}  Ke4 {[%clk 0:00:04]} 76. Re8+ {[%clk 0:00:06]}  Kf4 {[%clk 0:00:05]} 77. Rf8+ {[%clk 0:00:07]} 1/2-1/2


[Site "https://www.chess.com"]

[Event "Titled Tuesday Blitz May 30 Late 2023"]
[White "Bok, Benjamin"]
[Black "Kushko, Dmitriy"]
[WhiteFideId "1017063"]
[BlackFideId "14162261"]
[WhiteElo "2657"]
[BlackElo "2230"]
[Result "0-1"]
[Round "10"]
[TimeControl "180+2"]
[Date "2023.05.31"]
[WhiteClock "0:00:02"]
[BlackClock "0:00:03"]

1. d4 {[%clk 0:03:00]}  g6 {[%clk 0:03:00]} 2. e4 {[%clk 0:02:58]}  Bg7 {[%clk 0:03:00]} 3. Nf3 {[%clk 0:02:59]}  d6 {[%clk 0:03:00]} 4. Be3 {[%clk 0:02:59]}  Nf6 {[%clk 0:02:52]} 5. Nc3 {[%clk 0:02:59]}  O-O {[%clk 0:02:52]} 6. Qd2 {[%clk 0:02:59]}  a6 {[%clk 0:02:50]} 7. Bd3 {[%clk 0:02:50]}  Nc6 {[%clk 0:02:49]} 8. O-O-O {[%clk 0:02:42]}  e5 {[%clk 0:02:25]} 9. dxe5 {[%clk 0:02:41]}  dxe5 {[%clk 0:02:18]} 10. Kb1 {[%clk 0:02:32]}  Bg4 {[%clk 0:02:16]} 11. Bc4 {[%clk 0:02:25]}  Qe7 {[%clk 0:02:06]} 12. Nd5 {[%clk 0:02:14]}  Nxd5 {[%clk 0:02:04]} 13. Bxd5 {[%clk 0:02:13]}  Rad8 {[%clk 0:01:27]} 14. Qc3 {[%clk 0:02:04]}  Nd4 {[%clk 0:01:26]} 15. Bxb7 {[%clk 0:01:40]}  c5 {[%clk 0:01:16]} 16. Bd5 {[%clk 0:01:33]}  Kh8 {[%clk 0:01:15]} 17. Rd3 {[%clk 0:01:26]}  f5 {[%clk 0:01:07]} 18. Bg5 {[%clk 0:01:24]}  Bf6 {[%clk 0:01:04]} 19. Bxf6+ {[%clk 0:01:24]}  Rxf6 {[%clk 0:01:03]} 20. Re1 {[%clk 0:01:09]}  Bxf3 {[%clk 0:00:59]} 21. gxf3 {[%clk 0:01:08]}  f4 {[%clk 0:00:58]} 22. Qc4 {[%clk 0:00:58]}  Rb8 {[%clk 0:00:56]} 23. c3 {[%clk 0:00:51]}  Nb5 {[%clk 0:00:52]} 24. Ka1 {[%clk 0:00:50]}  Rfb6 {[%clk 0:00:48]} 25. Red1 {[%clk 0:00:46]}  Qc7 {[%clk 0:00:32]} 26. Be6 {[%clk 0:00:28]}  Nd6 {[%clk 0:00:23]} 27. Qd5 {[%clk 0:00:27]}  Ne8 {[%clk 0:00:06]} 28. Qd7 {[%clk 0:00:12]}  Rxb2 {[%clk 0:00:05]} 29. Qxc7 {[%clk 0:00:07]}  Nxc7 {[%clk 0:00:06]} 30. Rd8+ {[%clk 0:00:07]}  Kg7 {[%clk 0:00:05]} 31. Rxb8 {[%clk 0:00:06]}  Rxb8 {[%clk 0:00:06]} 32. Rd7+ {[%clk 0:00:06]}  Kf6 {[%clk 0:00:06]} 33. Rxc7 {[%clk 0:00:03]}  Kxe6 {[%clk 0:00:06]} 34. Rxc5 {[%clk 0:00:04]}  Rd8 {[%clk 0:00:05]} 35. Rc6+ {[%clk 0:00:04]}  Kf7 {[%clk 0:00:05]} 36. Rxa6 {[%clk 0:00:03]}  Rd2 {[%clk 0:00:04]} 37. a4 {[%clk 0:00:03]}  Rxf2 {[%clk 0:00:04]} 38. a5 {[%clk 0:00:04]}  Rxf3 {[%clk 0:00:04]} 39. Rc6 {[%clk 0:00:04]}  Re3 {[%clk 0:00:02]} 40. a6 {[%clk 0:00:03]}  Rxe4 {[%clk 0:00:02]} 41. Kb2 {[%clk 0:00:02]}  f3 {[%clk 0:00:02]} 42. Rd6 {[%clk 0:00:02]}  f2 {[%clk 0:00:02]} 43. Rd1 {[%clk 0:00:02]}  Re1 {[%clk 0:00:03]} 0-1


[Site "https://www.chess.com"]